bitfinex/quotes_ETHUSD_20250508
["timestamp","ask_amount","ask_price","bid_price","bid_amount"]
[1746678772202,5.24191434,1907.7,1907.4,0.8059]
[1746678772500,0.781,1907.6,1907.0,0.8059]
[1746678772799,5.24257481,1907.5,1907.1,0.05242956]
[1746678773100,5.24235459,1907.6,1907.1,5.90602085]
[1746678773262,5.24235459,1907.6,1907.2,11.71028377]
[1746678773465,5.24235459,1907.6,1907.2,11.7102803]
[1746678774908,5.24200112,1907.7,1907.2,16.95340911]
[1746678775103,5.24200112,1907.7,1907.3,1.69534091]
[1746678775404,0.7765,1908.0,1907.4,6.0457425]
[1746678775699,5.24152286,1907.9,1907.5,5.24243927]
[1746678776423,5.24120087,1908.0,1907.6,5.29451439]
[1746678776601,5.24112868,1908.0,1907.5,11.20229944]
[1746678776902,5.24112868,1908.0,1907.6,1.12022994]
[1746678777275,5.24112868,1908.0,1907.6,6.36237058]
[1746678778207,5.24112868,1908.0,1907.6,6.36239825]
[1746678778883,5.24112868,1908.0,1907.6,1.12022994]
[1746678779307,5.24140907,1907.9,1907.6,1.12022994]
[1746678779472,5.24097626,1908.1,1907.7,5.24176777]
[1746678779809,5.24041358,1908.3,1907.8,7.80127678]
[1746678780016,5.24041358,1908.3,1907.8,13.76127678]
[1746678780214,5.24075658,1908.2,1907.8,13.76127678]
[1746678780417,10.48153794,1908.2,1907.8,13.76127678]
[1746678780590,3.0,1908.4,1907.8,12.428]
[1746678780792,5.24053572,1908.3,1907.8,17.66953899]
[1746678780991,5.2406836,1908.2,1907.8,12.428]
[1746678781193,5.24136485,1907.9,1907.8,12.428]
[1746678781522,5.24136485,1907.9,1907.8,6.468]
[1746678782396,0.7952,1908.3,1907.8,6.468]
[1746678782728,5.24104271,1908.1,1907.8,7.12004152]
[1746678783100,5.24104271,1908.1,1907.8,7.17245235]
[1746678783522,5.24110194,1908.0,1907.8,6.468]
[1746678783726,5.24136485,1907.9,1907.8,6.468]
[1746678784821,5.24124705,1908.0,1907.8,6.468]
[1746678785724,5.24136485,1907.9,1907.8,6.468]
[1746678788026,5.24087025,1908.1,1907.8,6.468]
[1746678788027,5.24095741,1908.1,1907.8,6.468]
[1746678788227,5.24095741,1908.1,1907.8,7.19242]
[1746678789000,5.24136485,1907.9,1907.8,6.468]
[1746678790796,5.24218913,1907.6,1907.5,5.96]
[1746678795261,5.24120606,1908.0,1907.5,5.96]
[1746678795405,5.24180537,1907.8,1907.6,1.354]
[1746678795610,5.24154013,1907.9,1907.6,1.354]
[1746678796242,5.24191434,1907.7,1907.6,1.354]
[1746678796450,5.24181429,1907.8,1907.6,1.354]
[1746678796808,5.24153841,1907.9,1907.6,1.354]
[1746678797254,10.48312999,1907.9,1907.6,1.354]
[1746678797418,5.24153841,1907.9,1907.6,1.354]
[1746678797618,5.24167505,1907.8,1907.6,1.354]
[1746678798763,5.24169298,1907.8,1907.6,1.354]
[1746678799046,5.2414947,1907.9,1907.6,1.354]
[1746678799432,5.24180908,1907.8,1907.6,1.354]
[1746678800234,5.24157195,1907.9,1907.6,1.40641575]
[1746678800423,5.24157195,1907.9,1907.6,1.354]
[1746678800952,5.24122888,1908.0,1907.7,0.05241328]
[1746678801141,5.24137499,1907.9,1907.7,0.71727285]
[1746678801471,5.24137499,1907.9,1907.6,1.354]
[1746678801952,5.24191434,1907.7,1907.6,1.354]
[1746678802112,5.24218913,1907.6,1907.5,5.96]
[1746678802512,5.24191434,1907.7,1907.5,5.96]
[1746678802745,5.24218913,1907.6,1907.5,5.96]
[1746678803557,5.53661438,1907.6,1907.5,5.96]
[1746678804258,0.8019,1907.5,1906.8,7.2787]
[1746678804473,5.24411348,1906.9,1906.8,6.456]
[1746678804672,5.24466355,1906.7,1906.6,18.878]
[1746678804877,5.24466355,1906.7,1906.5,0.8177]
[1746678805028,5.24396837,1907.0,1906.6,0.05244575]
[1746678805221,5.24396837,1907.0,1906.6,5.90890774]
[1746678805422,5.24395247,1907.0,1906.5,0.8177]
[1746678805662,0.7828,1907.3,1906.5,0.8177]
[1746678805663,5.24442998,1906.8,1906.5,0.8177]
[1746678806273,5.24428148,1906.9,1906.5,6.06289625]
[1746678806439,5.2439968,1907.0,1906.6,0.05244336]
[1746678806938,6.02584221,1907.3,1906.5,6.46294397]
[1746678807125,5.24431431,1906.9,1906.5,9.59019001]
[1746678807548,5.53721879,1907.2,1906.5,9.59019001]
[1746678807549,5.2445402,1906.8,1906.5,9.59019001]
[1746678808037,5.2445402,1906.8,1906.5,9.19014229]
[1746678808425,5.24398036,1907.0,1906.6,0.05244386]
[1746678808659,5.24398036,1907.0,1906.6,5.29736412]
[1746678809163,5.24398036,1907.0,1906.6,0.05244386]
[1746678809341,5.24398036,1907.0,1906.6,7.31097508]
[1746678810848,5.24398036,1907.0,1906.6,2.06605705]
[1746678811161,5.24493863,1906.6,1906.5,5.96]
[1746678811669,5.24521374,1906.5,1906.4,6.456]
[1746678812229,0.7905,1906.4,1905.7,0.8234]
[1746678812467,5.24641807,1906.1,1905.7,6.07071047]
[1746678812769,5.24620425,1906.2,1905.8,5.2471195]
[1746678812933,5.24586593,1906.3,1905.9,0.05246516]
[1746678813136,5.24521379,1906.5,1905.7,7.66515205]
[1746678813454,5.24627951,1906.2,1905.7,7.66515205]
[1746678813650,5.24627951,1906.2,1905.8,0.7665152]
[1746678813854,0.8076,1906.6,1905.7,1.21476423]
[1746678814041,0.7617,1906.1,1905.7,0.8234]
[1746678814247,5.24690983,1905.9,1905.7,0.8234]
[1746678814692,5.24769101,1905.6,1905.5,6.458]
[1746678814975,5.24769761,1905.6,1905.2,6.45366322]
[1746678815135,5.24769761,1905.6,1905.2,8.46752379]
[1746678815839,5.24774218,1905.6,1905.3,0.05247848]
[1746678816156,0.7617,1906.1,1905.2,3.2187523]
[1746678816330,5.24834958,1905.4,1905.2,0.8066]
[1746678816932,5.24813767,1905.5,1905.2,0.8066]
[1746678817470,5.24819598,1905.5,1905.2,0.8066]
[1746678817636,5.24819598,1905.5,1905.3,0.10131907]
[1746678818565,0.7595,1905.7,1905.3,0.15380143]
[1746678818566,5.24754065,1905.7,1905.3,0.15380143]
[1746678818762,5.24678685,1906.0,1905.6,0.8074]
[1746678819075,5.2464301,1906.1,1905.7,5.24733771]
[1746678819469,5.24675586,1906.0,1905.6,7.2494]
[1746678819666,5.24731812,1905.8,1905.6,7.2494]
[1746678819900,0.8258,1905.9,1905.4,5.96]
[1746678820057,5.24796641,1905.5,1905.4,5.96]
[1746678820256,5.24796641,1905.5,1905.2,0.7647]
[1746678821156,5.24818886,1905.5,1905.2,0.7647]
[1746678821401,5.24840663,1905.4,1905.1,7.2067]
[1746678821593,5.24812943,1905.5,1905.2,0.05248704]
[1746678821893,5.24827805,1905.4,1905.1,7.2067]
[1746678822099,5.2479009,1905.6,1905.1,16.03619866]
[1746678822257,5.24796212,1905.6,1905.1,15.98375256]
[1746678822799,5.24770625,1905.6,1905.2,5.24868671]
[1746678823291,5.24755451,1905.7,1905.2,5.2485612]
[1746678823479,5.24755451,1905.7,1905.3,5.30093092]
[1746678823656,5.24729898,1905.8,1905.5,0.8035]
[1746678823857,5.2468747,1905.9,1905.5,0.8035]
[1746678824194,5.24668461,1906.0,1905.6,0.05247457]
[1746678824390,5.24668461,1906.0,1905.6,17.70407557]
[1746678824696,5.24668461,1906.0,1905.6,17.651601]
[1746678824892,5.24668461,1906.0,1905.7,1.7651601]
[1746678825079,5.24664597,1906.0,1905.7,1.7651601]
[1746678825300,5.24641324,1906.1,1905.8,0.0524657]
[1746678825480,5.24641324,1906.1,1905.7,1.7651601]
[1746678825799,5.24614463,1906.2,1905.8,5.29957755]
[1746678825998,5.24651251,1906.1,1905.9,1.29635776]
[1746678826202,5.24618861,1906.2,1905.9,0.7664]
[1746678826377,6.03343242,1906.4,1905.9,0.7664]
[1746678826696,5.24658971,1906.0,1905.9,0.7664]
[1746678826904,5.24646663,1906.1,1905.9,0.7664]
[1746678827400,5.24686499,1905.9,1905.8,5.96]
[1746678828165,5.24674135,1906.0,1905.8,5.96]
[1746678828381,5.2464937,1906.1,1905.8,6.56124704]
[1746678828615,5.24589695,1906.3,1905.8,6.56124704]
[1746678828911,5.24630434,1906.2,1905.9,0.8058]
[1746678829083,5.24637546,1906.1,1905.9,0.8058]
[1746678829586,10.49295862,1906.1,1905.9,0.8058]
[1746678829792,5.24658971,1906.0,1905.8,5.96]
[1746678830972,5.24652658,1906.1,1905.8,5.96]
[1746678831519,5.24668784,1906.0,1905.8,7.16029009]
[1746678831712,5.24646992,1906.1,1905.8,7.16029009]
[1746678831873,5.24646992,1906.1,1905.7,6.7555]
[1746678832075,10.49304268,1906.1,1905.7,6.7555]
[1746678832405,5.24690939,1905.9,1905.7,6.7555]
[1746678832568,6.06569457,1906.8,1906.3,5.24551644]
[1746678832772,5.24428231,1906.9,1906.5,0.8131]
[1746678832980,5.24428231,1906.9,1906.6,0.0524437]
[1746678833397,5.24391907,1907.0,1906.6,0.0524437]
[1746678833398,0.7969,1907.1,1906.6,0.0524437]
[1746678833575,6.02333108,1907.3,1906.6,0.38566747]
[1746678833774,5.24372681,1907.1,1906.6,5.79471626]
[1746678834007,5.24404229,1907.0,1906.6,6.98000557]
[1746678834913,5.24423241,1906.9,1906.6,1.73528931]
[1746678835108,5.24469854,1906.7,1906.5,6.7731]
[1746678835408,5.24443937,1906.8,1906.5,6.7731]
[1746678835771,5.24428448,1906.9,1906.5,6.7731]
[1746678835976,5.24448758,1906.8,1906.5,6.7731]
[1746678836200,5.24424285,1906.9,1906.5,6.7731]
[1746678836559,5.24442175,1906.8,1906.5,6.7731]
[1746678836874,5.24467737,1906.7,1906.5,5.96]
[1746678837688,5.24425755,1906.9,1906.5,11.94780819]
[1746678837977,5.2439928,1907.0,1906.7,0.8048]
[1746678838274,5.2439928,1907.0,1906.7,0.85724072]
[1746678838479,5.2439928,1907.0,1906.7,0.8048]
[1746678838700,5.24404485,1907.0,1906.7,0.8048]
[1746678839293,10.48846964,1906.9,1906.7,0.8048]
[1746678839486,5.24493863,1906.6,1906.5,5.96]
[1746678840502,5.24482935,1906.7,1906.5,5.96]
[1746678840714,5.24413469,1906.9,1906.6,0.8104]
[1746678840883,5.24458147,1906.8,1906.6,0.8104]
[1746678841229,5.24521374,1906.5,1906.4,5.96]
[1746678841383,5.24548887,1906.4,1906.3,6.444]
[1746678841887,5.24603924,1906.2,1906.1,6.7704]
[1746678842085,5.24631446,1906.1,1906.0,18.901]
[1746678842384,5.2462083,1906.2,1905.9,7.2524]
[1746678842705,0.7622,1906.5,1905.9,7.2524]
[1746678842907,6.00745451,1906.5,1905.9,7.2524]
[1746678843125,5.24635054,1906.1,1905.9,7.2524]
[1746678843292,0.7622,1906.5,1905.9,6.442]
[1746678843492,5.24593731,1906.3,1905.9,6.442]
[1746678843790,5.24619964,1906.2,1905.9,6.442]
[1746678843994,5.24584544,1906.3,1905.9,6.442]
[1746678844219,0.7622,1906.5,1905.9,6.442]
[1746678844220,5.24637989,1906.1,1905.9,6.442]
[1746678845324,5.24645014,1906.1,1905.9,6.442]
[1746678846824,5.24587723,1906.3,1905.9,6.442]
[1746678847026,5.24587723,1906.3,1905.9,7.09144632]
[1746678847225,5.24587723,1906.3,1905.9,6.442]
[1746678847434,0.7622,1906.5,1905.9,6.442]
[1746678847435,6.00742195,1906.5,1905.9,6.442]
[1746678847639,5.24656141,1906.1,1905.9,6.442]
[1746678847853,5.24632395,1906.1,1905.9,6.442]
[1746678848006,10.49287208,1906.1,1905.9,6.442]
[1746678848335,5.24550272,1906.4,1905.9,6.442]
[1746678848548,5.24654896,1906.1,1905.9,6.442]
[1746678848710,5.24658971,1906.0,1905.9,6.442]
[1746678849213,5.24649027,1906.1,1905.9,6.442]
[1746678849429,5.24658971,1906.0,1905.9,6.442]
[1746678849927,5.24649027,1906.1,1905.9,6.442]
[1746678850312,5.24658971,1906.0,1905.9,6.442]
[1746678851122,5.2471403,1905.8,1905.7,5.96]
[1746678852043,0.8128,1906.4,1905.9,0.7896]
[1746678852237,5.2461969,1906.2,1905.9,0.7896]
[1746678852415,0.8128,1906.4,1905.9,0.7896]
[1746678852621,10.49419782,1905.9,1905.7,6.7132]
[1746678852822,6.05853761,1906.4,1905.7,0.7532]
[1746678853146,5.2464191,1906.1,1905.8,0.55]
[1746678853345,5.2464191,1906.1,1905.8,1.20504971]
[1746678855451,5.24674119,1906.0,1905.8,1.20504971]
[1746678855654,5.24674119,1906.0,1905.8,0.55]
[1746678856818,5.24686499,1905.9,1905.8,0.55]
[1746678857019,5.24686499,1905.9,1905.7,6.7132]
[1746678857331,10.49397018,1905.9,1905.7,6.7132]
[1746678857627,5.24713153,1905.9,1905.7,5.96]
[1746678857823,5.2471403,1905.8,1905.7,5.96]
[1746678858029,5.24748826,1905.7,1905.5,13.1648]
[1746678858244,5.24686499,1905.9,1905.5,6.424]
[1746678858444,5.24769101,1905.6,1905.5,6.424]
[1746678858956,5.24756213,1905.7,1905.5,6.424]
[1746678859452,5.24766817,1905.7,1905.5,6.424]
[1746678859633,5.24769101,1905.6,1905.5,6.424]
[1746678860758,5.24537414,1906.5,1906.0,5.24643873]
[1746678861058,5.24562541,1906.4,1906.1,4.52624221]
[1746678861225,5.24536823,1906.5,1906.1,4.52624221]
[1746678861587,5.24549768,1906.4,1906.1,4.52624221]
[1746678861753,5.24535983,1906.5,1906.1,4.52624221]
[1746678862266,5.24535983,1906.5,1906.1,0.7773]
[1746678862469,5.24626676,1906.2,1906.0,6.425]
[1746678862644,5.24624354,1906.2,1906.0,6.425]
[1746678862845,0.8202,1906.6,1906.1,0.55]
[1746678863054,5.24572828,1906.4,1906.1,0.55]
[1746678863557,5.24572331,1906.4,1906.1,0.55]
[1746678863748,5.24587842,1906.3,1906.1,0.55]
[1746678863936,0.8202,1906.6,1906.1,0.55]
[1746678864362,6.06522523,1906.6,1906.0,6.425]
[1746678864531,5.24600463,1906.3,1906.0,6.425]
[1746678864730,5.24565852,1906.4,1906.1,0.60246355]
[1746678864926,5.24565852,1906.4,1906.1,0.55]
[1746678865540,5.24582414,1906.3,1906.1,0.55]
[1746678866463,5.24603924,1906.2,1906.1,0.55]
[1746678867237,5.24587906,1906.3,1906.1,0.55]
[1746678867449,10.49144341,1906.4,1906.1,0.55]
[1746678868261,5.24580322,1906.3,1906.1,0.55]
[1746678869073,0.8202,1906.6,1906.3,0.55]
[1746678869074,6.06526362,1906.6,1906.3,0.55]
[1746678869226,11.31046147,1906.6,1906.3,0.55]
[1746678869421,6.06526362,1906.6,1906.3,0.55]
[1746678869851,0.29442593,1906.5,1906.3,0.55]
[1746678870229,0.29442593,1906.5,1906.4,5.24548887]
[1746678870446,0.29442593,1906.5,1906.4,4.9244911]
[1746678870747,5.2450528,1906.6,1906.5,0.55]
[1746678870942,5.24484502,1906.7,1906.5,0.55]
[1746678871138,0.2943786,1906.6,1906.3,0.55]
[1746678871355,5.24497438,1906.6,1906.3,2.10139283]
[1746678871965,5.24497438,1906.6,1906.3,0.55]
[1746678872149,5.24483398,1906.7,1906.3,0.55]
[1746678872349,5.24495124,1906.6,1906.3,0.55]
[1746678872747,5.24482568,1906.7,1906.3,5.84808142]
[1746678872950,5.24482568,1906.7,1906.3,6.19603352]
[1746678873178,5.24494794,1906.6,1906.3,3.06639731]
[1746678873383,5.24484206,1906.7,1906.3,0.95040363]
[1746678873576,10.48974699,1906.7,1906.3,0.95040363]
[1746678873884,5.24524221,1906.5,1906.3,0.95040363]
[1746678874044,5.24548887,1906.4,1906.3,0.55]
[1746678874445,5.24548887,1906.4,1906.0,9.425]
[1746678874691,5.24548887,1906.4,1906.0,16.21928124]
[1746678874981,5.24533958,1906.5,1906.1,5.84854924]
[1746678875167,6.05754784,1906.6,1906.1,0.55]
[1746678875375,5.24533744,1906.5,1906.2,0.55]
[1746678875685,5.24533744,1906.5,1906.2,0.93548347]
[1746678876251,5.24533744,1906.5,1906.1,5.24616068]
[1746678876252,5.24558182,1906.4,1906.1,0.55]
[1746678876446,5.24597524,1906.3,1906.1,0.55]
[1746678876685,5.24564097,1906.4,1906.1,0.55]
[1746678876983,0.8124,1906.6,1906.1,1.40227032]
[1746678877163,5.24567642,1906.4,1906.1,0.55]
[1746678877495,5.2451337,1906.6,1906.3,0.55]
[1746678877995,5.24439004,1906.8,1906.3,0.55]
[1746678878151,5.24536393,1906.5,1906.3,0.55]
[1746678878587,5.24501798,1906.6,1906.3,0.55]
[1746678879382,5.24501798,1906.6,1906.3,1.21501703]
[1746678879778,5.2448356,1906.7,1906.3,1.21501703]
[1746678879984,5.2448356,1906.7,1906.5,0.55]
[1746678880990,0.7853,1907.0,1906.5,0.55]
[1746678881166,0.7853,1907.0,1906.4,0.05245312]
[1746678881167,5.24448696,1906.8,1906.7,0.55]
[1746678882060,5.24423063,1906.9,1906.7,0.55]
[1746678882302,5.24396974,1907.0,1906.7,0.55]
[1746678882791,5.24411949,1906.9,1906.7,0.55]
[1746678883266,5.24399426,1907.0,1906.7,0.55]
[1746678883462,5.24371554,1907.1,1906.7,0.55]
[1746678883665,5.24339029,1907.2,1906.8,5.29665679]
[1746678883974,5.24360215,1907.1,1906.8,0.05244061]
[1746678884178,5.24369938,1907.1,1906.8,0.70338313]
[1746678884493,5.24334571,1907.2,1906.8,5.94772907]
[1746678884802,5.24310881,1907.3,1906.9,5.79395982]
[1746678884957,5.24304066,1907.3,1907.0,0.7919]
[1746678887268,5.24263786,1907.5,1907.2,0.55]
[1746678888279,5.24240111,1907.6,1907.3,0.7999]
[1746678889795,5.24247244,1907.5,1907.3,0.7999]
[1746678890099,5.24136514,1907.9,1907.1,0.55]
[1746678890100,5.24314791,1907.3,1907.1,0.55]
[1746678890990,5.24288909,1907.4,1907.1,0.55]
[1746678892086,10.48585953,1907.4,1907.1,0.55]
[1746678892393,5.24293604,1907.4,1907.1,0.55]
[1746678892597,5.24313779,1907.3,1907.1,0.55]
[1746678893521,5.24263414,1907.5,1907.1,1.32308]
[1746678893675,5.24263414,1907.5,1907.2,0.05242779]
[1746678894418,5.24236323,1907.6,1907.3,0.7764]
[1746678894580,5.24246395,1907.5,1907.4,0.55]
[1746678894906,5.24202608,1907.7,1907.4,0.55]
[1746678895107,5.24207632,1907.7,1907.4,0.55]
[1746678895277,5.24207632,1907.7,1907.4,1.20693782]
[1746678896204,10.48421916,1907.7,1907.4,1.20693782]
[1746678896417,5.24207632,1907.7,1907.4,1.20693782]
[1746678897013,10.4842516,1907.7,1907.4,1.20693782]
[1746678897195,0.7644,1907.9,1907.4,0.55]
[1746678897196,5.24246395,1907.5,1907.4,0.55]
[1746678897906,5.24205286,1907.7,1907.4,0.55]
[1746678898280,5.24222295,1907.6,1907.4,0.55]
[1746678899209,5.24205047,1907.7,1907.3,5.24289748]
[1746678899372,5.24174733,1907.8,1907.6,0.55]
[1746678899771,5.24191434,1907.7,1907.6,0.55]
[1746678900016,0.7823,1907.8,1907.2,5.96]
[1746678900211,5.24328859,1907.2,1907.0,6.401]
[1746678900508,5.24328859,1907.2,1907.0,7.1228]
[1746678900809,0.7823,1907.6,1907.0,7.1228]
[1746678901118,5.24322265,1907.3,1907.1,0.55]
[1746678901479,5.24328859,1907.2,1907.0,13.0828]
[1746678901781,5.24310382,1907.3,1907.1,0.55]
[1746678902010,5.24328859,1907.2,1907.1,0.55]
[1746678902622,5.24327083,1907.3,1907.1,0.55]
[1746678903019,5.24328859,1907.2,1907.1,0.55]
[1746678903819,5.2443885,1906.8,1906.7,5.96]
[1746678904147,6.05718859,1907.2,1906.6,6.4]
[1746678904148,5.24394783,1907.0,1906.6,6.4]
[1746678904426,5.24430429,1906.9,1906.8,0.55]
[1746678904574,5.24370637,1907.1,1906.8,0.7987]
[1746678904908,5.24260378,1907.5,1907.2,0.55]
[1746678905078,5.24301368,1907.3,1907.2,0.55]
[1746678905493,5.24288212,1907.4,1907.2,0.55]
[1746678905708,5.24301368,1907.3,1907.2,0.55]
[1746678908438,0.7982,1907.8,1907.2,0.55]
[1746678908736,0.7982,1907.8,1907.4,1.3014]
[1746678908737,5.24176512,1907.8,1907.4,1.3014]
[1746678908941,5.24136485,1907.9,1907.5,5.24244442]
[1746678908942,5.24148022,1907.9,1907.5,5.24244442]
[1746678909101,5.24148022,1907.9,1907.6,0.60241407]
[1746678909304,5.24095371,1908.1,1907.8,0.55]
[1746678909305,5.24114892,1908.0,1907.8,0.55]
[1746678910140,5.24103034,1908.1,1907.8,0.55]
[1746678910345,5.24109787,1908.0,1907.8,0.55]
[1746678910505,5.24136485,1907.9,1907.8,0.55]
[1746678910707,5.24093133,1908.1,1907.8,0.55]
[1746678910918,5.24119097,1908.0,1907.8,0.55]
[1746678911253,5.24094385,1908.1,1907.8,0.55]
[1746678911399,5.24069777,1908.2,1907.8,5.84403816]
[1746678911604,5.24069777,1908.2,1907.9,0.58440382]
[1746678912354,5.24035562,1908.3,1908.1,0.7525]
[1746678912533,5.24014125,1908.4,1908.1,0.7525]
[1746678912734,5.23986329,1908.5,1908.1,0.7525]
[1746678913049,5.24015361,1908.4,1908.1,0.7525]
[1746678913753,5.24015361,1908.4,1908.1,1.14674816]
[1746678914252,5.23983561,1908.5,1908.3,0.55]
[1746678914457,0.05,1908.6,1908.3,0.55]
[1746678914458,5.28955633,1908.6,1908.3,0.55]
[1746678914605,0.05,1908.6,1908.5,0.55]
[1746678916209,5.28944252,1908.6,1908.5,0.55]
[1746678916631,0.05,1908.6,1908.5,0.55]
[1746678916925,5.28944252,1908.6,1908.5,0.55]
[1746678918004,0.05,1908.6,1908.5,0.55]
[1746678918223,5.28944252,1908.6,1908.5,0.55]
[1746678921245,5.2402662,1908.3,1908.2,5.96]
[1746678921626,5.2402662,1908.3,1908.2,6.51]
[1746678924013,5.24109014,1908.0,1907.9,7.35480382]
[1746678924214,5.24109014,1908.0,1907.9,0.8104]
[1746678924416,5.24009276,1908.4,1908.0,5.24092586]
[1746678924639,5.24009276,1908.4,1908.3,0.55]
[1746678926468,5.28958732,1908.6,1908.3,0.55]
[1746678926765,0.05,1908.6,1908.5,1.3449]
[1746678927055,0.05,1908.6,1908.5,13.80433583]
[1746678927760,0.05,1908.6,1908.5,8.56461878]
[1746678928359,0.05,1908.6,1908.5,13.80433583]
[1746678928546,0.05,1908.6,1908.5,8.56461878]
[1746678928871,0.05,1908.6,1908.5,13.85672553]
[1746678929014,0.05,1908.6,1908.5,13.80433583]
[1746678929218,0.05,1908.6,1908.5,8.56461878]
[1746678929556,0.05,1908.6,1908.5,13.80433583]
[1746678929946,0.05,1908.6,1908.5,8.56461878]
[1746678930316,0.05,1908.6,1908.5,7.76971878]
[1746678930753,0.05,1908.6,1908.5,7.82210933]
[1746678930963,0.05,1908.6,1908.5,7.76971878]
[1746678931481,5.23995259,1908.5,1908.1,5.96]
[1746678931655,0.05,1908.6,1908.1,5.96]
[1746678931861,5.24019842,1908.4,1908.2,0.55]
[1746678932063,5.24019842,1908.4,1908.1,5.96]
[1746678932284,5.24019842,1908.4,1908.3,0.55]
[1746678933869,5.23981979,1908.5,1908.3,0.55]
[1746678934215,5.23999161,1908.4,1908.3,0.55]
[1746678935564,5.23971705,1908.5,1908.3,0.55]
[1746678935763,5.28961435,1908.6,1908.3,0.55]
[1746678935971,0.05,1908.6,1908.5,0.55]
[1746678936808,5.28944252,1908.6,1908.5,0.55]
[1746678937503,0.05,1908.6,1908.5,0.55]
[1746678938679,5.28944252,1908.6,1908.5,1.31786]
[1746678939715,5.23999161,1908.4,1908.3,5.96]
[1746678939887,5.24033119,1908.3,1908.1,5.96]
[1746678940086,5.24038959,1908.3,1908.1,6.51]
[1746678941734,10.48090981,1908.3,1908.1,6.51]
[1746678941945,5.24054082,1908.2,1908.1,5.96]
[1746678942606,5.24109014,1908.0,1907.9,6.343]
[1746678945553,5.24109014,1908.0,1907.9,6.893]
[1746678945840,5.24097557,1908.1,1907.9,7.5823]
[1746678946147,5.24109014,1908.0,1907.9,7.5823]
[1746678946308,5.24109014,1908.0,1907.9,6.893]
[1746678946914,5.24109014,1908.0,1907.9,6.343]
[1746678947449,5.24109014,1908.0,1907.9,6.893]
[1746678949658,5.24097557,1908.1,1907.9,6.893]
[1746678950340,5.24109014,1908.0,1907.9,6.893]
[1746678952351,5.24109014,1908.0,1907.9,0.55]
[1746678953738,5.24076013,1908.2,1907.9,1.378]
[1746678954153,5.24107065,1908.1,1907.9,1.378]
[1746678954346,5.24109014,1908.0,1907.9,0.55]
[1746678955872,5.24094698,1908.1,1907.9,0.55]
[1746678956171,5.24109014,1908.0,1907.9,0.55]
[1746678961255,5.2405742,1908.2,1907.4,5.96]
[1746678961256,5.24232217,1907.6,1907.4,5.96]
[1746678961458,5.24232217,1907.6,1907.4,0.596]
[1746678961651,5.24274685,1907.4,1907.2,31.9993]
[1746678962575,0.8245,1907.7,1907.2,31.9993]
[1746678962576,5.24234869,1907.6,1907.2,31.9993]
[1746678962748,0.766,1907.9,1907.4,0.55]
[1746678963077,5.24071129,1908.2,1907.8,5.79160648]
[1746678963276,5.24071129,1908.2,1908.0,0.55]
[1746678963575,5.24043554,1908.3,1908.0,0.55]
[1746678963771,5.24009527,1908.4,1908.0,6.49859293]
[1746678963933,5.24027262,1908.3,1908.0,1.20514496]
[1746678964340,5.24027262,1908.3,1908.0,0.55]
[1746678964545,5.24044031,1908.3,1908.0,0.55]
[1746678964783,5.24012823,1908.4,1908.0,0.60240513]
[1746678964983,5.24012823,1908.4,1908.0,5.84348395]
[1746678965148,5.24012823,1908.4,1908.0,5.79107882]
[1746678965348,5.24012823,1908.4,1907.9,9.0015297]
[1746678965349,5.24012823,1908.4,1908.2,0.55]
[1746678965669,6.00364082,1908.2,1908.1,0.55]
[1746678965870,5.24081547,1908.1,1908.0,5.96]
[1746678966750,5.24136485,1907.9,1907.8,6.344]
[1746678966951,5.24191977,1907.7,1907.4,9.781]
[1746678967196,5.24191977,1907.7,1907.5,3.9781]
[1746678967870,5.24191977,1907.7,1907.6,0.55]
[1746678968186,0.7524,1907.9,1907.3,6.344]
[1746678968355,5.24262358,1907.5,1907.3,6.344]
[1746678968764,5.24262358,1907.5,1907.4,0.55]
[1746678969360,5.2427388,1907.4,1907.3,6.344]
[1746678969873,5.2427388,1907.4,1907.3,6.894]
[1746678970593,5.24356352,1907.1,1907.0,0.7831]
[1746678970784,5.24383848,1907.0,1906.9,6.315]
[1746678970959,5.24465623,1906.8,1906.5,12.275]
[1746678971160,5.24483335,1906.7,1906.5,15.47224]
[1746678971483,5.24454286,1906.8,1906.5,15.47224]
[1746678971912,5.24454286,1906.8,1906.6,0.55]
[1746678972277,5.2439612,1907.0,1906.6,5.24493601]
[1746678972473,0.7934,1907.3,1906.8,1.3479]
[1746678972707,5.24346606,1907.2,1906.8,7.07950656]
[1746678972876,5.24317583,1907.3,1906.8,7.07931359]
[1746678973076,0.7529,1907.5,1906.8,7.07931359]
[1746678973077,5.99545598,1907.5,1906.8,1.83512657]
[1746678973277,5.24276454,1907.4,1907.2,0.55]
[1746678973512,5.24262946,1907.5,1907.2,0.55]
[1746678973810,5.24235165,1907.6,1907.2,1.9646]
[1746678974010,5.24274983,1907.4,1907.2,1.9646]
[1746678974380,5.24301368,1907.3,1907.2,1.9646]
[1746678974585,5.24290412,1907.4,1907.2,0.55]
[1746678976221,5.24290412,1907.4,1907.3,0.39790763]
[1746678977906,5.24290646,1907.4,1907.2,0.55]
[1746678978109,5.24262592,1907.5,1907.4,0.55]
[1746678978691,5.24262592,1907.5,1907.4,0.94790763]
[1746678979417,5.24262592,1907.5,1907.4,0.39790763]
[1746678979623,5.24301368,1907.3,1907.2,0.55]
[1746678979818,5.24291301,1907.4,1907.2,0.94790763]
[1746678980117,5.24301368,1907.3,1907.2,0.94790763]
[1746678982030,5.24123292,1908.0,1907.6,5.24198361]
[1746678982212,5.24097586,1908.1,1907.7,1.41721481]
[1746678982410,5.24097586,1908.1,1907.9,0.55]
[1746678982811,5.24097586,1908.1,1908.0,0.39790763]
[1746678985127,6.03777586,1908.1,1908.0,0.39790763]
[1746678985421,5.24191434,1907.7,1907.6,12.277]
[1746678985586,5.24191434,1907.7,1907.6,6.317]
[1746678986493,0.7968,1908.1,1907.6,6.867]
[1746678986494,5.24155475,1907.9,1907.6,6.867]
[1746678986689,5.24155475,1907.9,1907.6,8.3274]
[1746678987225,5.24164419,1907.8,1907.6,8.3274]
[1746678988024,5.2412227,1908.0,1907.7,0.55]
[1746678988323,5.24149574,1907.9,1907.7,0.55]